[Event "Titled Tuesday Blitz October 31 Late 2023"]
[White "Elbebiber"]
[Black "KorolDimitriy75"]
[WhiteElo "2165"]
[BlackElo "2344"]
[Result "1/2-1/2"]
[Round "7"]
[TimeControl "180+1"]
[Date "2023.10.31"]
[WhiteClock "0:00:09"]
[BlackClock "0:00:08"]
[Board "119"]

1. f4 {[%clk 0:03:00]}  c5 {[%clk 0:03:00]} 2. Nf3 {[%clk 0:03:00]}  g6 {[%clk 0:03:00]} 3. e3 {[%clk 0:02:50]}  Bg7 {[%clk 0:03:00]} 4. Be2 {[%clk 0:02:50]}  Nc6 {[%clk 0:03:01]} 5. O-O {[%clk 0:02:49]}  d6 {[%clk 0:03:01]} 6. Bb5 {[%clk 0:02:46]}  Bd7 {[%clk 0:03:00]} 7. Nc3 {[%clk 0:02:38]}  e5 {[%clk 0:02:56]} 8. fxe5 {[%clk 0:02:33]}  dxe5 {[%clk 0:02:54]} 9. e4 {[%clk 0:02:26]}  h6 {[%clk 0:02:41]} 10. d3 {[%clk 0:02:23]}  Nge7 {[%clk 0:02:40]} 11. Be3 {[%clk 0:02:16]}  Nd4 {[%clk 0:02:36]} 12. Bxd7+ {[%clk 0:02:15]}  Qxd7 {[%clk 0:02:37]} 13. Qd2 {[%clk 0:02:01]}  f5 {[%clk 0:02:25]} 14. exf5 {[%clk 0:01:53]}  gxf5 {[%clk 0:02:26]} 15. Rae1 {[%clk 0:01:44]}  O-O-O {[%clk 0:02:20]} 16. b3 {[%clk 0:01:23]}  b6 {[%clk 0:02:02]} 17. Na4 {[%clk 0:01:17]}  Nec6 {[%clk 0:01:56]} 18. Nxd4 {[%clk 0:01:00]}  cxd4 {[%clk 0:01:53]} 19. Bf2 {[%clk 0:00:56]}  Kb7 {[%clk 0:01:50]} 20. Nb2 {[%clk 0:00:52]}  Qd5 {[%clk 0:01:40]} 21. Nc4 {[%clk 0:00:49]}  e4 {[%clk 0:01:29]} 22. dxe4 {[%clk 0:00:43]}  fxe4 {[%clk 0:01:30]} 23. Bg3 {[%clk 0:00:42]}  Rd7 {[%clk 0:01:26]} 24. Qf2 {[%clk 0:00:36]}  b5 {[%clk 0:01:03]} 25. Nd6+ {[%clk 0:00:29]}  Ka8 {[%clk 0:00:43]} 26. Qf5 {[%clk 0:00:25]}  Rxd6 {[%clk 0:00:26]} 27. Bxd6 {[%clk 0:00:23]}  Qxd6 {[%clk 0:00:27]} 28. Qxe4 {[%clk 0:00:17]}  Be5 {[%clk 0:00:17]} 29. g3 {[%clk 0:00:12]}  Re8 {[%clk 0:00:14]} 30. Qf3 {[%clk 0:00:08]}  Kb8 {[%clk 0:00:14]} 31. Kg2 {[%clk 0:00:07]}  a6 {[%clk 0:00:12]} 32. Re4 {[%clk 0:00:07]}  Re7 {[%clk 0:00:11]} 33. Rfe1 {[%clk 0:00:08]}  Kc7 {[%clk 0:00:11]} 34. Qf5 {[%clk 0:00:07]}  Kb6 {[%clk 0:00:10]} 35. Qf3 {[%clk 0:00:07]}  Kc7 {[%clk 0:00:09]} 36. a4 {[%clk 0:00:08]}  b4 {[%clk 0:00:09]} 37. Qf5 {[%clk 0:00:07]}  Kb6 {[%clk 0:00:09]} 38. Qf1 {[%clk 0:00:07]}  Kc7 {[%clk 0:00:09]} 39. Qc4 {[%clk 0:00:07]}  Kb7 {[%clk 0:00:09]} 40. a5 {[%clk 0:00:07]}  Nxa5 {[%clk 0:00:08]} 41. Qd3 {[%clk 0:00:07]}  Nc6 {[%clk 0:00:08]} 42. Qf3 {[%clk 0:00:08]}  Kb6 {[%clk 0:00:08]} 43. Qd3 {[%clk 0:00:07]}  a5 {[%clk 0:00:07]} 44. Qc4 {[%clk 0:00:07]}  Re8 {[%clk 0:00:06]} 45. Qe2 {[%clk 0:00:07]}  Re7 {[%clk 0:00:07]} 46. Qd3 {[%clk 0:00:08]}  Re8 {[%clk 0:00:07]} 47. Qe2 {[%clk 0:00:08]}  Re7 {[%clk 0:00:08]} 48. Qd3 {[%clk 0:00:09]}  Re8 {[%clk 0:00:08]} 49. Qe2 {[%clk 0:00:09]} 1/2-1/2


[Site "https://www.chess.com"]

[Event "Titled Tuesday Blitz October 31 Late 2023"]
[White "LuxLinster"]
[Black "Do Nascimento,Christian Almeida"]
[BlackFideId "2143801"]
[WhiteElo "2265"]
[BlackElo "2562"]
[Result "0-1"]
[Round "7"]
[TimeControl "180+1"]
[Date "2023.10.31"]
[WhiteClock "0:00:00"]
[BlackClock "0:00:13"]
[Board "121"]

1. d4 {[%clk 0:03:00]}  Nf6 {[%clk 0:02:58]} 2. c4 {[%clk 0:02:59]}  e6 {[%clk 0:02:58]} 3. g3 {[%clk 0:02:59]}  c5 {[%clk 0:02:47]} 4. Nf3 {[%clk 0:02:59]}  cxd4 {[%clk 0:02:45]} 5. Nxd4 {[%clk 0:02:59]}  Nc6 {[%clk 0:02:46]} 6. Bg2 {[%clk 0:02:59]}  Bb4+ {[%clk 0:02:39]} 7. Bd2 {[%clk 0:02:59]}  Qa5 {[%clk 0:02:39]} 8. Bxb4 {[%clk 0:02:06]}  Qxb4+ {[%clk 0:02:36]} 9. Nc3 {[%clk 0:02:06]}  Qxb2 {[%clk 0:02:32]} 10. Ndb5 {[%clk 0:02:04]}  Qb4 {[%clk 0:02:24]} 11. Nc7+ {[%clk 0:01:53]}  Ke7 {[%clk 0:02:20]} 12. Nxa8 {[%clk 0:01:48]}  Qxc3+ {[%clk 0:02:20]} 13. Kf1 {[%clk 0:01:48]}  Qa5 {[%clk 0:02:12]} 14. Rb1 {[%clk 0:01:35]}  Rd8 {[%clk 0:01:49]} 15. Rb5 {[%clk 0:01:22]}  Qxa2 {[%clk 0:01:49]} 16. Nc7 {[%clk 0:01:22]}  Qxc4 {[%clk 0:01:46]} 17. Rb1 {[%clk 0:01:13]}  a6 {[%clk 0:01:39]} 18. h4 {[%clk 0:01:03]}  b5 {[%clk 0:01:24]} 19. h5 {[%clk 0:01:02]}  h6 {[%clk 0:01:11]} 20. Rh4 {[%clk 0:01:00]}  Qc5 {[%clk 0:01:07]} 21. Qb3 {[%clk 0:00:31]}  d6 {[%clk 0:00:44]} 22. Nxb5 {[%clk 0:00:20]}  axb5 {[%clk 0:00:44]} 23. Qxb5 {[%clk 0:00:21]}  Qxb5 {[%clk 0:00:40]} 24. Rxb5 {[%clk 0:00:21]}  Bd7 {[%clk 0:00:39]} 25. Rb7 {[%clk 0:00:20]}  Ne5 {[%clk 0:00:38]} 26. Ra4 {[%clk 0:00:16]}  Ke8 {[%clk 0:00:27]} 27. Raa7 {[%clk 0:00:15]}  Rc8 {[%clk 0:00:27]} 28. Rc7 {[%clk 0:00:10]}  Rb8 {[%clk 0:00:26]} 29. Rcb7 {[%clk 0:00:10]}  Rd8 {[%clk 0:00:26]} 30. f4 {[%clk 0:00:09]}  Neg4 {[%clk 0:00:26]} 31. Bf3 {[%clk 0:00:09]}  Ne3+ {[%clk 0:00:23]} 32. Kf2 {[%clk 0:00:09]}  Ned5 {[%clk 0:00:19]} 33. g4 {[%clk 0:00:09]}  Bc6 {[%clk 0:00:15]} 34. Rxf7 {[%clk 0:00:07]}  Bd7 {[%clk 0:00:15]} 35. Rxg7 {[%clk 0:00:07]}  Nxf4 {[%clk 0:00:14]} 36. e3 {[%clk 0:00:04]}  N4d5 {[%clk 0:00:14]} 37. Rg6 {[%clk 0:00:03]}  Kf7 {[%clk 0:00:12]} 38. Rxh6 {[%clk 0:00:03]}  Kg7 {[%clk 0:00:12]} 39. Rg6+ {[%clk 0:00:02]}  Kf7 {[%clk 0:00:13]} 40. e4 {[%clk 0:00:02]}  Nc3 {[%clk 0:00:11]} 41. g5 {[%clk 0:00:02]}  Ncxe4+ {[%clk 0:00:11]} 42. Bxe4 {[%clk 0:00:01]}  Nxe4+ {[%clk 0:00:12]} 43. Ke3 {[%clk 0:00:02]}  Nc5 {[%clk 0:00:12]} 44. Rf6+ {[%clk 0:00:02]}  Ke7 {[%clk 0:00:12]} 45. Ra1 {[%clk 0:00:03]}  Rb8 {[%clk 0:00:12]} 46. Raf1 {[%clk 0:00:03]}  Rb3+ {[%clk 0:00:13]} 47. Kd2 {[%clk 0:00:03]}  Be8 {[%clk 0:00:13]} 48. g6 {[%clk 0:00:03]}  Rh3 {[%clk 0:00:13]} 49. g7 {[%clk 0:00:00]}  Ne4+ {[%clk 0:00:13]} 0-1


[Site "https://www.chess.com"]

[Event "Titled Tuesday Blitz October 31 Late 2023"]
[White "Broca Jimenez, Fernando"]
[Black "jactorres"]
[WhiteFideId "5104742"]
[WhiteElo "2230"]
[BlackElo "2481"]
[Result "1-0"]
[Round "7"]
[TimeControl "180+1"]
[Date "2023.10.31"]
[WhiteClock "0:01:43"]
[BlackClock "0:01:11"]
[Board "123"]

1. e4 {[%clk 0:03:00]}  c6 {[%clk 0:02:57]} 2. d4 {[%clk 0:02:58]}  d5 {[%clk 0:02:55]} 3. Nc3 {[%clk 0:02:59]}  dxe4 {[%clk 0:02:55]} 4. Nxe4 {[%clk 0:02:59]}  Nd7 {[%clk 0:02:55]} 5. Ng5 {[%clk 0:02:58]}  e6 {[%clk 0:02:54]} 6. Bd3 {[%clk 0:02:59]}  Bd6 {[%clk 0:02:54]} 7. N1f3 {[%clk 0:02:57]}  Ngf6 {[%clk 0:02:53]} 8. Qe2 {[%clk 0:02:56]}  h6 {[%clk 0:02:45]} 9. Ne4 {[%clk 0:02:55]}  Nxe4 {[%clk 0:02:43]} 10. Qxe4 {[%clk 0:02:56]}  Nf6 {[%clk 0:02:43]} 11. Qh4 {[%clk 0:02:56]}  Qc7 {[%clk 0:02:30]} 12. O-O {[%clk 0:02:51]}  b6 {[%clk 0:02:21]} 13. Bd2 {[%clk 0:02:32]}  Bb7 {[%clk 0:02:20]} 14. Rfe1 {[%clk 0:02:24]}  O-O-O {[%clk 0:02:19]} 15. Ne5 {[%clk 0:02:23]}  c5 {[%clk 0:02:15]} 16. c3 {[%clk 0:02:20]}  Kb8 {[%clk 0:02:07]} 17. Rad1 {[%clk 0:01:59]}  cxd4 {[%clk 0:01:38]} 18. cxd4 {[%clk 0:01:55]}  Nd5 {[%clk 0:01:36]} 19. Rc1 {[%clk 0:01:48]}  Qe7 {[%clk 0:01:30]} 20. Qxe7 {[%clk 0:01:47]}  Bxe7 {[%clk 0:01:24]} 21. Nxf7 {[%clk 0:01:47]}  Bf6 {[%clk 0:01:11]} 22. Nxh8 {[%clk 0:01:43]}  Rxh8 {[%clk 0:01:11]} 1-0


[Site "https://www.chess.com"]

[Event "Titled Tuesday Blitz October 31 Late 2023"]
[White "ChessDojo"]
[Black "iJueles"]
[WhiteElo "2151"]
[BlackElo "2436"]
[Result "0-1"]
[Round "7"]
[TimeControl "180+1"]
[Date "2023.10.31"]
[WhiteClock "0:01:29"]
[BlackClock "0:01:30"]
[Board "125"]

1. c4 {[%clk 0:02:50]}  e5 {[%clk 0:02:53]} 2. Nc3 {[%clk 0:02:50]}  Nf6 {[%clk 0:02:53]} 3. Nf3 {[%clk 0:02:50]}  Nc6 {[%clk 0:02:52]} 4. g3 {[%clk 0:02:51]}  Bc5 {[%clk 0:02:51]} 5. Bg2 {[%clk 0:02:50]}  d6 {[%clk 0:02:51]} 6. O-O {[%clk 0:02:46]}  O-O {[%clk 0:02:48]} 7. a3 {[%clk 0:02:45]}  a5 {[%clk 0:02:48]} 8. d3 {[%clk 0:02:44]}  h6 {[%clk 0:02:47]} 9. b3 {[%clk 0:02:43]}  Be6 {[%clk 0:02:47]} 10. Rb1 {[%clk 0:02:41]}  Qd7 {[%clk 0:02:45]} 11. Bd2 {[%clk 0:02:36]}  Bh3 {[%clk 0:02:43]} 12. e3 {[%clk 0:02:24]}  Bxg2 {[%clk 0:02:42]} 13. Kxg2 {[%clk 0:02:24]}  Bxa3 {[%clk 0:02:41]} 14. Nb5 {[%clk 0:02:19]}  Bc5 {[%clk 0:02:38]} 15. d4 {[%clk 0:02:19]}  exd4 {[%clk 0:02:37]} 16. exd4 {[%clk 0:02:20]}  Bb4 {[%clk 0:02:35]} 17. d5 {[%clk 0:02:18]}  Ne7 {[%clk 0:02:28]} 18. Bxb4 {[%clk 0:02:17]}  axb4 {[%clk 0:02:29]} 19. Qd2 {[%clk 0:02:17]}  Nexd5 {[%clk 0:02:25]} 20. Nxd6 {[%clk 0:02:06]}  Qxd6 {[%clk 0:02:21]} 21. cxd5 {[%clk 0:02:05]}  Nxd5 {[%clk 0:02:10]} 22. Rfd1 {[%clk 0:02:04]}  c6 {[%clk 0:02:10]} 23. Qd4 {[%clk 0:02:01]}  Ra2 {[%clk 0:02:03]} 24. Nh4 {[%clk 0:02:00]}  Qf6 {[%clk 0:01:58]} 25. Qxf6 {[%clk 0:01:54]}  Nxf6 {[%clk 0:01:59]} 26. Nf5 {[%clk 0:01:53]}  Nd5 {[%clk 0:01:57]} 27. Rd4 {[%clk 0:01:47]}  Re8 {[%clk 0:01:37]} 28. Rbd1 {[%clk 0:01:41]}  Ree2 {[%clk 0:01:33]} 29. Nd6 {[%clk 0:01:29]}  Ne3+ {[%clk 0:01:30]} 0-1


[Site "https://www.chess.com"]

[Event "Titled Tuesday Blitz October 31 Late 2023"]
[White "Petersson, Kjell"]
[Black "Bibasa, Bob"]
[WhiteFideId "1705148"]
[BlackFideId "10000240"]
[WhiteElo "2150"]
[BlackElo "2426"]
[Result "0-1"]
[Round "7"]
[TimeControl "180+1"]
[Date "2023.10.31"]
[WhiteClock "0:00:00"]
[BlackClock "0:00:29"]
[Board "126"]

1. d4 {[%clk 0:03:00]}  e6 {[%clk 0:02:59]} 2. Bf4 {[%clk 0:03:01]}  f5 {[%clk 0:02:59]} 3. e3 {[%clk 0:02:59]}  Nf6 {[%clk 0:02:59]} 4. Bd3 {[%clk 0:02:57]}  d6 {[%clk 0:02:56]} 5. Nf3 {[%clk 0:02:55]}  g6 {[%clk 0:02:55]} 6. Nc3 {[%clk 0:02:45]}  Bg7 {[%clk 0:02:55]} 7. h4 {[%clk 0:02:45]}  h6 {[%clk 0:02:52]} 8. Qd2 {[%clk 0:02:39]}  Qe7 {[%clk 0:02:50]} 9. e4 {[%clk 0:02:37]}  fxe4 {[%clk 0:02:47]} 10. Nxe4 {[%clk 0:02:36]}  Nbd7 {[%clk 0:02:47]} 11. O-O-O {[%clk 0:02:29]}  Nxe4 {[%clk 0:02:41]} 12. Bxe4 {[%clk 0:02:28]}  Nf6 {[%clk 0:02:42]} 13. Bxg6+ {[%clk 0:02:27]}  Kd8 {[%clk 0:02:40]} 14. Rhe1 {[%clk 0:02:25]}  Nd5 {[%clk 0:02:37]} 15. Bg3 {[%clk 0:02:21]}  Bd7 {[%clk 0:02:33]} 16. Kb1 {[%clk 0:02:09]}  b5 {[%clk 0:02:28]} 17. h5 {[%clk 0:02:02]}  Bf6 {[%clk 0:02:24]} 18. Qa5 {[%clk 0:01:44]}  Nb6 {[%clk 0:02:10]} 19. Nd2 {[%clk 0:01:39]}  Bxd4 {[%clk 0:01:58]} 20. Nb3 {[%clk 0:01:39]}  Bg7 {[%clk 0:01:57]} 21. Bd3 {[%clk 0:01:25]}  a6 {[%clk 0:01:52]} 22. Bxd6 {[%clk 0:01:18]}  Qxd6 {[%clk 0:01:43]} 23. Be4 {[%clk 0:01:18]}  Nd5 {[%clk 0:01:35]} 24. c4 {[%clk 0:00:50]}  bxc4 {[%clk 0:01:27]} 25. Nd4 {[%clk 0:00:42]}  Qb6 {[%clk 0:01:09]} 26. Qxb6 {[%clk 0:00:34]}  cxb6 {[%clk 0:01:06]} 27. Nxe6+ {[%clk 0:00:18]}  Bxe6 {[%clk 0:01:04]} 28. Bxd5 {[%clk 0:00:19]}  Bxd5 {[%clk 0:01:04]} 29. Rxd5+ {[%clk 0:00:19]}  Kc8 {[%clk 0:01:04]} 30. Re7 {[%clk 0:00:18]}  Bf6 {[%clk 0:00:53]} 31. Rf7 {[%clk 0:00:18]}  Bd8 {[%clk 0:00:48]} 32. Rfd7 {[%clk 0:00:11]}  Rb8 {[%clk 0:00:46]} 33. R7d6 {[%clk 0:00:05]}  Rb7 {[%clk 0:00:44]} 34. Rc6+ {[%clk 0:00:02]}  Rc7 {[%clk 0:00:44]} 35. Rxb6 {[%clk 0:00:02]}  Re7 {[%clk 0:00:38]} 36. Rxa6 {[%clk 0:00:01]}  Re1+ {[%clk 0:00:37]} 37. Kc2 {[%clk 0:00:02]}  Re2+ {[%clk 0:00:37]} 38. Kc3 {[%clk 0:00:02]}  Rxf2 {[%clk 0:00:35]} 39. Kxc4 {[%clk 0:00:02]}  Rxb2 {[%clk 0:00:34]} 40. Kc5 {[%clk 0:00:00]}  Be7+ {[%clk 0:00:29]} 0-1


[Site "https://www.chess.com"]

[Event "Titled Tuesday Blitz October 31 Late 2023"]
[White "Novikova, Galina"]
[Black "Oliveira, Tiago Batista"]
[WhiteFideId "4157095"]
[BlackFideId "2108291"]
[WhiteElo "2398"]
[BlackElo "2049"]
[Result "1-0"]
[Round "7"]
[TimeControl "180+1"]
[Date "2023.10.31"]
[WhiteClock "0:00:48"]
[BlackClock "0:00:00"]
[Board "128"]

1. e4 {[%clk 0:03:00]}  e5 {[%clk 0:02:52]} 2. f4 {[%clk 0:02:59]}  exf4 {[%clk 0:02:45]} 3. Nf3 {[%clk 0:02:58]}  Be7 {[%clk 0:02:41]} 4. Bc4 {[%clk 0:02:57]}  Bh4+ {[%clk 0:02:36]} 5. Kf1 {[%clk 0:02:56]}  Nh6 {[%clk 0:02:30]} 6. d4 {[%clk 0:02:50]}  Ng4 {[%clk 0:02:30]} 7. Nxh4 {[%clk 0:02:31]}  Qxh4 {[%clk 0:02:29]} 8. Qf3 {[%clk 0:02:28]}  Nxh2+ {[%clk 0:02:27]} 9. Rxh2 {[%clk 0:02:28]}  Qxh2 {[%clk 0:02:27]} 10. Bxf4 {[%clk 0:02:25]}  Qh1+ {[%clk 0:02:15]} 11. Kf2 {[%clk 0:02:25]}  O-O {[%clk 0:02:15]} 12. Bxc7 {[%clk 0:02:08]}  Nc6 {[%clk 0:01:58]} 13. c3 {[%clk 0:02:04]}  Qh4+ {[%clk 0:01:45]} 14. Bg3 {[%clk 0:02:01]}  Qh6 {[%clk 0:01:31]} 15. Bf4 {[%clk 0:01:57]}  Qh4+ {[%clk 0:01:21]} 16. Bg3 {[%clk 0:01:57]}  Qf6 {[%clk 0:00:56]} 17. Qxf6 {[%clk 0:01:50]}  gxf6 {[%clk 0:00:56]} 18. Nd2 {[%clk 0:01:49]}  Ne7 {[%clk 0:00:32]} 19. Bh4 {[%clk 0:01:46]}  Kg7 {[%clk 0:00:28]} 20. Rf1 {[%clk 0:01:44]}  Ng6 {[%clk 0:00:28]} 21. Bg3 {[%clk 0:01:43]}  Re8 {[%clk 0:00:19]} 22. Ke3 {[%clk 0:01:38]}  a6 {[%clk 0:00:18]} 23. a4 {[%clk 0:01:36]}  Rd8 {[%clk 0:00:13]} 24. Bd6 {[%clk 0:01:35]}  Re8 {[%clk 0:00:12]} 25. Nf3 {[%clk 0:01:28]}  b5 {[%clk 0:00:12]} 26. axb5 {[%clk 0:01:27]}  axb5 {[%clk 0:00:13]} 27. Bxb5 {[%clk 0:01:25]}  Ra2 {[%clk 0:00:12]} 28. Ba3 {[%clk 0:01:24]}  Bb7 {[%clk 0:00:13]} 29. Nd2 {[%clk 0:01:24]}  Bc6 {[%clk 0:00:10]} 30. Bc4 {[%clk 0:01:23]}  Rxa3 {[%clk 0:00:08]} 31. bxa3 {[%clk 0:01:24]}  d5 {[%clk 0:00:08]} 32. Bb3 {[%clk 0:01:14]}  dxe4 {[%clk 0:00:08]} 33. c4 {[%clk 0:01:14]}  Rb8 {[%clk 0:00:07]} 34. d5 {[%clk 0:01:14]}  Bd7 {[%clk 0:00:06]} 35. Kxe4 {[%clk 0:01:14]}  Ne5 {[%clk 0:00:06]} 36. c5 {[%clk 0:01:08]}  Bb5 {[%clk 0:00:05]} 37. Rc1 {[%clk 0:00:57]}  Bd3+ {[%clk 0:00:06]} 38. Kd4 {[%clk 0:00:57]}  Ra8 {[%clk 0:00:04]} 39. a4 {[%clk 0:00:56]}  Bf5 {[%clk 0:00:03]} 40. c6 {[%clk 0:00:55]}  Nd3 {[%clk 0:00:04]} 41. Rc3 {[%clk 0:00:54]}  Nb4 {[%clk 0:00:03]} 42. d6 {[%clk 0:00:51]}  Rd8 {[%clk 0:00:03]} 43. Kc5 {[%clk 0:00:51]}  Na6+ {[%clk 0:00:02]} 44. Kb6 {[%clk 0:00:51]}  Ra8 {[%clk 0:00:01]} 45. c7 {[%clk 0:00:49]}  Nxc7 {[%clk 0:00:01]} 46. dxc7 {[%clk 0:00:50]}  Bc8 {[%clk 0:00:01]} 47. a5 {[%clk 0:00:48]}  Ra6+ {[%clk 0:00:00]} 48. Kb5 {[%clk 0:00:48]} 1-0


[Site "https://www.chess.com"]

[Event "Titled Tuesday Blitz October 31 Late 2023"]
[White "rikchessmx"]
[Black "Vargas, Mauricio"]
[BlackFideId "4404572"]
[WhiteElo "2287"]
[BlackElo "1852"]
[Result "1-0"]
[Round "7"]
[TimeControl "180+1"]
[Date "2023.10.31"]
[WhiteClock "0:01:10"]
[BlackClock "0:00:00"]
[Board "131"]

1. e4 {[%clk 0:02:39]}  d5 {[%clk 0:02:57]} 2. exd5 {[%clk 0:02:38]}  Qxd5 {[%clk 0:02:58]} 3. Nc3 {[%clk 0:02:39]}  Qa5 {[%clk 0:02:58]} 4. Nge2 {[%clk 0:02:40]}  c6 {[%clk 0:02:58]} 5. d4 {[%clk 0:02:39]}  Bg4 {[%clk 0:02:56]} 6. f3 {[%clk 0:02:39]}  Bh5 {[%clk 0:02:56]} 7. g4 {[%clk 0:02:39]}  Bg6 {[%clk 0:02:56]} 8. h4 {[%clk 0:02:39]}  f6 {[%clk 0:02:53]} 9. Nf4 {[%clk 0:02:37]}  Bf7 {[%clk 0:02:53]} 10. Bd3 {[%clk 0:02:36]}  e5 {[%clk 0:02:52]} 11. dxe5 {[%clk 0:02:34]}  fxe5 {[%clk 0:02:52]} 12. Ne2 {[%clk 0:02:33]}  Bd6 {[%clk 0:02:51]} 13. Bd2 {[%clk 0:02:33]}  Qb6 {[%clk 0:02:47]} 14. Na4 {[%clk 0:02:31]}  Qc7 {[%clk 0:02:42]} 15. Bc3 {[%clk 0:02:23]}  Nd7 {[%clk 0:02:39]} 16. b3 {[%clk 0:02:21]}  Ngf6 {[%clk 0:02:38]} 17. Qd2 {[%clk 0:02:16]}  e4 {[%clk 0:02:37]} 18. fxe4 {[%clk 0:02:15]}  Bg3+ {[%clk 0:02:32]} 19. Nxg3 {[%clk 0:02:15]}  Qxg3+ {[%clk 0:02:32]} 20. Qf2 {[%clk 0:02:16]}  Qxg4 {[%clk 0:02:27]} 21. Rg1 {[%clk 0:02:13]}  Qh5 {[%clk 0:02:01]} 22. Rxg7 {[%clk 0:02:08]}  O-O-O {[%clk 0:01:58]} 23. Rg5 {[%clk 0:02:07]}  Qh6 {[%clk 0:01:52]} 24. O-O-O {[%clk 0:02:05]}  Qf8 {[%clk 0:01:44]} 25. Qxa7 {[%clk 0:02:00]}  Qa3+ {[%clk 0:01:21]} 26. Kb1 {[%clk 0:01:58]}  Qe7 {[%clk 0:01:12]} 27. Ra5 {[%clk 0:01:46]}  Nb8 {[%clk 0:00:48]} 28. Nb6+ {[%clk 0:01:41]}  Kc7 {[%clk 0:00:47]} 29. Be5+ {[%clk 0:01:41]}  Rd6 {[%clk 0:00:38]} 30. Nc4 {[%clk 0:01:35]}  Bxc4 {[%clk 0:00:33]} 31. Bxc4 {[%clk 0:01:30]}  Rd8 {[%clk 0:00:32]} 32. Rxd6 {[%clk 0:01:17]}  Rxd6 {[%clk 0:00:30]} 33. Qc5 {[%clk 0:01:17]}  Nxe4 {[%clk 0:00:24]} 34. Bxd6+ {[%clk 0:01:17]}  Nxd6 {[%clk 0:00:14]} 35. Qe5 {[%clk 0:01:11]}  Qf7 {[%clk 0:00:00]} 36. Bxf7 {[%clk 0:01:10]} 1-0


[Site "https://www.chess.com"]

[Event "Titled Tuesday Blitz October 31 Late 2023"]
[White "Krasik, Ilya"]
[Black "Sarkar, Justin"]
[WhiteFideId "2024527"]
[BlackFideId "2010011"]
[WhiteElo "2000"]
[BlackElo "2210"]
[Result "0-1"]
[Round "7"]
[TimeControl "180+1"]
[Date "2023.10.31"]
[WhiteClock "0:00:00"]
[BlackClock "0:00:15"]
[Board "132"]

1. d4 {[%clk 0:03:00]}  Nf6 {[%clk 0:02:55]} 2. c4 {[%clk 0:03:00]}  e6 {[%clk 0:02:53]} 3. Nf3 {[%clk 0:02:58]}  d5 {[%clk 0:02:52]} 4. Nc3 {[%clk 0:02:56]}  Nbd7 {[%clk 0:02:48]} 5. Bg5 {[%clk 0:02:55]}  Be7 {[%clk 0:02:47]} 6. e3 {[%clk 0:02:55]}  a6 {[%clk 0:02:38]} 7. cxd5 {[%clk 0:02:54]}  exd5 {[%clk 0:02:36]} 8. Bd3 {[%clk 0:02:54]}  O-O {[%clk 0:02:34]} 9. O-O {[%clk 0:02:54]}  Re8 {[%clk 0:02:31]} 10. Rc1 {[%clk 0:02:13]}  Nf8 {[%clk 0:02:12]} 11. Bb1 {[%clk 0:02:08]}  Bg4 {[%clk 0:02:01]} 12. h3 {[%clk 0:02:03]}  Bh5 {[%clk 0:01:59]} 13. g4 {[%clk 0:01:49]}  Bg6 {[%clk 0:01:36]} 14. Ne5 {[%clk 0:01:45]}  Bxb1 {[%clk 0:01:30]} 15. Nxb1 {[%clk 0:01:44]}  Ne4 {[%clk 0:01:21]} 16. Bxe7 {[%clk 0:01:43]}  Qxe7 {[%clk 0:01:20]} 17. Nc3 {[%clk 0:01:40]}  Nxc3 {[%clk 0:01:14]} 18. Rxc3 {[%clk 0:01:39]}  c6 {[%clk 0:01:12]} 19. Qf3 {[%clk 0:01:27]}  Nd7 {[%clk 0:01:01]} 20. Nxd7 {[%clk 0:01:07]}  Qxd7 {[%clk 0:01:01]} 21. Rfc1 {[%clk 0:00:57]}  Re4 {[%clk 0:00:56]} 22. a4 {[%clk 0:00:41]}  a5 {[%clk 0:00:55]} 23. Rb3 {[%clk 0:00:40]}  Rf8 {[%clk 0:00:48]} 24. Rc5 {[%clk 0:00:36]}  f5 {[%clk 0:00:43]} 25. g5 {[%clk 0:00:30]}  f4 {[%clk 0:00:40]} 26. Qg4 {[%clk 0:00:30]}  Qxg4+ {[%clk 0:00:30]} 27. hxg4 {[%clk 0:00:31]}  fxe3 {[%clk 0:00:29]} 28. fxe3 {[%clk 0:00:16]}  Rxg4+ {[%clk 0:00:28]} 29. Kh2 {[%clk 0:00:16]}  Rxg5 {[%clk 0:00:21]} 30. Rxb7 {[%clk 0:00:14]}  Rf6 {[%clk 0:00:16]} 31. Rb8+ {[%clk 0:00:13]}  Kf7 {[%clk 0:00:16]} 32. Rb7+ {[%clk 0:00:00]}  Ke8 {[%clk 0:00:15]} 0-1


[Site "https://www.chess.com"]